Workbook

Sheet Diba
A3: estat d'execució del pressupost | K3: exercici corrent
A4: resum per capítols | K4: 30 de juny de 2021
A7: ingressos
A9: capítol pressupostari | D9: Pressupost inicial | E9: Modificacions | F9: Pressupost actual | G9: Drets reconeguts nets | H9: Recaptació | I9: Pendent de cobrament | K9: % (D)/(C)
D10: (A) | E10: (B) | F10: (C) = (A)+(B) | G10: (D) | H10: (E) | I10: (F) = (D)+(E) | K10: (G)
A11: 1 | B11: Impostos directes | D11: 140297000 | E11: 0 | F11: 140297000 | G11: 60427950.99 | H11: 59588627.44 | I11: 839323.55 | K11: =IF(F11=0,0,G11/F11) -> 0.4307144913
A12: 2 | B12: Impostos indirectes | D12: 90354500 | E12: 0 | F12: 90354500 | G12: 42087892.7 | H12: 42087892.7 | I12: 0 | K12: 0.4658084844
A13: 3 | B13: Taxes i altres ingressos | D13: 4190000 | E13: 0 | F13: 4190000 | G13: 3329526.46 | H13: 1948556.9 | I13: 1380969.56 | K13: 0.7946363866
A14: 4 | B14: Transferències corrents | D14: 536252750 | E14: 18264407.56 | F14: 554517157.6 | G14: 266112252.4 | H14: 265540753.2 | I14: 571499.28 | K14: 0.4798990416
A15: 5 | B15: Ingressos patrimonials | D15: 2589750 | E15: 0 | F15: 2589750 | G15: 1338783.51 | H15: 1026217.52 | I15: 312565.99 | K15: 0.5169547292
B16: Ingressos corrents (I1) | D16: =SUM(D11:D15) -> 773684000 | E16: 18264407.56 | F16: 791948407.6 | G16: =SUM(G11:G15) -> 373296406.1 | H16: =SUM(H11:H15) -> 370192047.7 | I16: 3104358.38 | K16: 0.4713645517
A17: 6 | B17: Alienació de béns | D17: 0 | E17: 0 | F17: 0 | G17: 137069.27 | H17: 103697.51 | I17: 33371.76 | K17: 0
A18: 7 | B18: Transferències capital | D18: 1100000 | E18: 0 | F18: 1100000 | G18: 824101.66 | H18: 445233.88 | I18: 378867.78 | K18: 0.7491833273
B19: Ingressos de capital (I2) | D19: =D17+D18 -> 1100000 | E19: 0 | F19: 1100000 | G19: =G17+G18 -> 961170.93 | H19: =H17+H18 -> 548931.39 | I19: 412239.54 | K19: 0.8737917545
A20: 8 | B20: Actius financers | D20: 190450000 | E20: 255379508.3 | F20: 445829508.3 | G20: 16062858.63 | H20: 4429449.46 | I20: 11633409.17 | K20: 0.0360291509
A21: 9 | B21: Passius financers | D21: 0 | E21: 0 | F21: 0 | G21: 0 | H21: 0 | I21: 0 | K21: 0
B22: Ingressos financers (I3) | D22: =D20+D21 -> 190450000 | E22: 255379508.3 | F22: 445829508.3 | G22: =G20+G21 -> 16062858.63 | H22: =H20+H21 -> 4429449.46 | I22: 11633409.17 | K22: 0.0360291509
B25: Total d'ingressos | D25: =D16+D19+D22 -> 965234000 | E25: 273643915.8 | F25: 1238877916 | G25: 390320435.7 | H25: 375170428.6 | I25: 15150007.09 | K25: =IF(F25=0,0,G25/F25) -> 0.3150596444
A29: despeses
A31: capítol pressupostari | D31: Pressupost inicial | E31: Modificacions | F31: Pressupost actual | G31: Obligacions reconegudes | H31: Pagaments | I31: Pendent de pagament | K31: % (D)/(C)
D32: (A) | E32: (B) | F32: (C) = (A)+(B) | G32: (D) | H32: (E) | I32: (F) = (D)+(E) | K32: (G)
A33: 1 | B33: Despeses de personal | D33: 242345000 | E33: 4442614.53 | F33: 246787614.5 | G33: 105307410.5 | H33: 105278922.5 | I33: 28488 | K33: =IF(F33=0,0,G33/F33) -> 0.4267127046
A34: 2 | B34: Despeses béns corrents i serveis | D34: 110078985 | E34: 18974597.2 | F34: 129053582.2 | G34: 36612006.92 | H34: 35320923.74 | I34: 1291083.18 | K34: 0.2836961694
A35: 3 | B35: Despeses financeres | D35: 1769000 | E35: -1465000 | F35: 304000 | G35: 33736.14 | H35: 33734.88 | I35: 1.26 | K35: 0.1109741447
A36: 4 | B36: Transferències corrents | D36: 239310910 | E36: 117912188 | F36: 357223098 | G36: 162779363.5 | H36: 151875978.9 | I36: 10903384.59 | K36: 0.4556798383
A37: 5 | B37: Fons de contingència i altres impr. | D37: 5000000 | E37: 0 | F37: 5000000 | G37: 0 | H37: 0 | I37: 0 | K37: =IF(F37=0,0,G37/F37) -> 0
B38: Despeses corrents (D1) | D38: =SUM(D33:D37) -> 598503895 | E38: 139864399.8 | F38: 738368294.8 | G38: 304732517.1 | H38: 292509560 | I38: 12222957.03 | K38: 0.4127107288
A39: 6 | B39: Inversions reals | D39: 51007000 | E39: 32682669.74 | F39: 83689669.74 | G39: 18846694.61 | H39: 18460475.65 | I39: 386218.96 | K39: 0.225197383
A40: 7 | B40: Transferències capital | D40: 122506115 | E40: 94072179.57 | F40: 216578294.6 | G40: 55228555.72 | H40: 51243315.65 | I40: 3985240.07 | K40: 0.2550050356
B41: Despeses de capital (D2) | D41: =D39+D40 -> 173513115 | E41: 126754849.3 | F41: 300267964.3 | G41: 74075250.33 | H41: 69703791.3 | I41: 4371459.03 | K41: 0.2466971477
A42: 8 | B42: Actius financers | D42: 193216990 | E42: 7024666.76 | F42: 200241656.8 | G42: 178208133.7 | H42: 178153069.2 | I42: 55064.47 | K42: 0.8899653376
A43: 9 | B43: Passius financers | D43: 0 | E43: 0 | F43: 0 | G43: 0 | H43: 0 | I43: 0 | K43: 0
B44: Despeses financeres (D3) | D44: =D42+D43 -> 193216990 | E44: 7024666.76 | F44: 200241656.8 | G44: 178208133.7 | H44: 178153069.2 | I44: 55064.47 | K44: 0.8899653376
B47: ="Total de "&A29 -> Total de despeses | D47: =D38+D41+D44 -> 965234000 | E47: 273643915.8 | F47: 1238877916 | G47: 557015901.1 | H47: 540366420.5 | I47: 16649480.53 | K47: =IF(F47=0,0,G47/F47) -> 0.4496132298
A51: diferències
A54: en operacions corrents (I1)-(D1) | D54: =D16-D38 -> 175180105 | E54: -121599992.2 | F54: 53580112.79 | G54: 68563889.04 | H54: 77682487.69 | I54: -9118598.65
A55: en operacions de capital (I2)-(D2) | D55: =D19-D41 -> -172413115 | E55: -126754849.3 | F55: -299167964.3 | G55: -73114079.4 | H55: -69154859.91 | I55: -3959219.49
A56: en operacions financeres (I3)-(D3) | D56: =D22-D44 -> -2766990 | E56: 248354841.5 | F56: 245587851.5 | G56: -162145275 | H56: -173723619.7 | I56: 11578344.7
B59: ="Total "&A51 -> Total diferències | D59: =D25-D47 -> 0 | E59: 0 | F59: 0 | G59: -166695465.4 | H59: -165195991.9 | I59: -1499473.44
K68: extret el 14/7/2021

Sheet DibaAltres
A3: estat d'execució del pressupost | K3: exercici corrent
A4: resum per capítols | K4: 30 de juny de 2021
A7: despeses
A9: capítol pressupostari | D9: Crèdits definitius | E9: Despeses autoritzades | F9: Despeses compromeses | G9: Obligacions reconegudes | H9: Crèdit disponible | I9: Romanents de crèdit | K9: % (C)/(A)
D10: (A) | E10: (B) | F10: (C) | G10: (D) | H10: (E) | I10: (F) = (A)-(D) | K10: (G)
A11: 1 | B11: Despeses de personal | D11: 246787614.5 | E11: 107578802.3 | F11: 107578802.3 | G11: 105307410.5 | H11: 139208812.2 | I11: 141480204.1 | K11: =IF(D11=0,0,F11/D11) -> 0.435916537
A12: 2 | B12: Despeses béns corrents i serveis | D12: 129053582.2 | E12: 94602747.42 | F12: 90367908.86 | G12: 36612006.92 | H12: 30781099.27 | I12: 92441575.28 | K12: =IF(D12=0,0,F12/D12) -> 0.7002355713
A13: 3 | B13: Despeses financeres | D13: 304000 | E13: 217935.92 | F13: 217935.92 | G13: 33736.14 | H13: 86064.08 | I13: 270263.86 | K13: 0.7168944737
A14: 4 | B14: Transferències corrents | D14: 357223098 | E14: 320136125.6 | F14: 310465602.9 | G14: 162779363.5 | H14: 35708351.09 | I14: 194443734.5 | K14: 0.8691084215
A15: 5 | B15: Fons de contingència i altres impr. | D15: 5000000 | E15: 0 | F15: 0 | G15: 0 | H15: 5000000 | I15: 5000000 | K15: =IF(D15=0,0,F15/D15) -> 0
B16: Despeses corrents (D1) | D16: =SUM(D11:D15) -> 738368294.8 | E16: 522535611.2 | F16: 508630250 | G16: 304732517.1 | H16: 210784326.7 | I16: 433635777.7 | K16: 0.6888571104
A17: 6 | B17: Inversions reals | D17: 83689669.74 | E17: 60890098.52 | F17: 44400923.74 | G17: 18846694.61 | H17: 20633537.92 | I17: 64842975.13 | K17: 0.5305424657
A18: 7 | B18: Transferències capital | D18: 216578294.6 | E18: 196546722.6 | F18: 186745346.2 | G18: 55228555.72 | H18: 19342878.64 | I18: 161349738.9 | K18: 0.8622532863
B19: Despeses de capital (D2) | D19: =D17+D18 -> 300267964.3 | E19: 257436821.1 | F19: 231146270 | G19: 74075250.33 | H19: 39976416.56 | I19: 226192714 | K19: 0.7697999702
A20: 8 | B20: Actius financers | D20: 200241656.8 | E20: 192132263.6 | F20: 192132263.6 | G20: 178208133.7 | H20: 8109393.2 | I20: 22033523.11 | K20: 0.9595019671
A21: 9 | B21: Passius financers | D21: 0 | E21: 0 | F21: 0 | G21: 0 | H21: 0 | I21: 0 | K21: 0
B22: Despeses financeres (D3) | D22: =D20+D21 -> 200241656.8 | E22: 192132263.6 | F22: 192132263.6 | G22: 178208133.7 | H22: 8109393.2 | I22: 22033523.11 | K22: 0.9595019671
B25: ="Total de "&A7 -> Total de despeses | D25: =D16+D19+D22 -> 1238877916 | E25: 972104695.9 | F25: 931908783.5 | G25: 557015901.1 | H25: 258870136.4 | I25: 681862014.8 | K25: =IF(D25=0,0,F25/D25) -> 0.7522200304
K70: extret el 14/7/2021

Sheet GrIngressos
L1: Intervenció General
L2: 30 de juny de 2021
L84: extret el 14/7/2021

Sheet GrDespeses
L1: Intervenció General
L2: 30 de juny de 2021
L84: extret el 14/7/2021

Sheet CGrafics
A3: calculs per gràfics del pressupost actual
A6: ingressos
B8: Previsions inicials | C8: Previsions definitives | D8: Drets reconeguts nets | E8: Cobraments realitzats | F8: Pendent de cobrament
B9: 965.234 | C9: 1238.877916 | D9: 390.3204357 | E9: 375.1704286 | F9: 15.15000709
A12: drets reconeguts nets
B14: 1 | C14: 2 | D14: 3 | E14: 4 | F14: 5 | G14: 6 | H14: 7 | I14: 8 | J14: 9
A15: drets reconeguts nets | B15: 60427950.99 | C15: 42087892.7 | D15: 3329526.46 | E15: 266112252.4 | F15: 1338783.51 | G15: 137069.27 | H15: 824101.66 | I15: 16062858.63 | J15: 0
A16: previsions definitives | B16: 140297000 | C16: 90354500 | D16: 4190000 | E16: 554517157.6 | F16: 2589750 | G16: 0 | H16: 1100000 | I16: 445829508.3 | J16: 0
A17: drets milions | B17: 60.42795099 | C17: 42.0878927 | D17: 3.32952646 | E17: 266.1122524 | F17: 1.33878351 | G17: 0.13706927 | H17: 0.82410166 | I17: 16.06285863 | J17: 0
A18: definitives milions | B18: 140.297 | C18: 90.3545 | D18: 4.19 | E18: 554.5171576 | F18: 2.58975 | G18: 0 | H18: 1.1 | I18: 445.8295083 | J18: 0
A21: ingressos nets
A23: recaptació neta | B23: =E9 -> 375.1704286
A24: pendent de cobrament | B24: =F9 -> 15.15000709
A27: despeses
B29: Crèdits inicials | C29: Crèdits definitius | D29: Disposicions | E29: Obligacions reconegudes | F29: Pagaments realitzats | G29: Pendent de pagament
B30: 965.234 | C30: 1238.877916 | D30: 931.9087835 | E30: 557.0159011 | F30: 540.3664205 | G30: 16.64948053
A33: obligacions reconegudes
B35: 1 | C35: 2 | D35: 3 | E35: 4 | F35: 5 | G35: 6 | H35: 7 | I35: 8 | J35: 9
A36: despeses compromeses | B36: 107578802.3 | C36: 90367908.86 | D36: 217935.92 | E36: 310465602.9 | F36: 0 | G36: 44400923.74 | H36: 186745346.2 | I36: 192132263.6 | J36: 0
A37: crèdits definitius | B37: 246787614.5 | C37: 129053582.2 | D37: 304000 | E37: 357223098 | F37: 5000000 | G37: 83689669.74 | H37: 216578294.6 | I37: 200241656.8 | J37: 0
A38: despeses compr. milions | B38: 107.5788023 | C38: 90.36790886 | D38: 0.21793592 | E38: 310.4656029 | F38: 0 | G38: 44.40092374 | H38: 186.7453462 | I38: 192.1322636 | J38: 0
A39: crèdits definitius milions | B39: 246.7876145 | C39: 129.0535822 | D39: 0.304 | E39: 357.223098 | F39: 5 | G39: 83.68966974 | H39: 216.5782946 | I39: 200.2416568 | J39: 0
A42: pagaments
A44: pagaments | B44: =F30 -> 540.3664205
A45: pendent de pagament | B45: =G30 -> 16.64948053
